bitfinex/quotes_ETHUSD_20220310
["timestamp","ask_amount","ask_price","bid_price","bid_amount"]
[1646877244363,0.201317,2668.9,2668.4,0.016314]
[1646877244766,0.201317,2668.9,2668.6,0.01418]
[1646877245366,0.201317,2668.9,2668.6,0.94552456]
[1646877245567,0.201317,2668.9,2668.6,1.01907648]
[1646877245769,2.85508249,2669.5,2668.7,0.0870705]
[1646877245969,0.93776,2669.8,2668.8,0.014201]
[1646877245970,1.35450564,2669.8,2668.8,0.014201]
[1646877246167,1.35450564,2669.8,2669.0,0.014259]
[1646877246416,1.35450564,2669.8,2669.2,0.014159]
[1646877246816,0.98540564,2669.8,2669.2,0.014159]
[1646877247017,0.93776,2669.8,2669.2,0.08732963]
[1646877247222,0.93726,2669.7,2669.2,0.08732963]
[1646877247619,0.93726,2669.7,2669.2,0.09904259]
[1646877247818,0.93726,2669.7,2669.4,0.014175]
[1646877248020,0.93776,2669.8,2669.6,1.07418322]
[1646877248221,0.93776,2669.8,2669.7,0.07724043]
[1646877248626,0.93776,2669.8,2669.7,0.01171296]
[1646877249622,3.54176894,2670.0,2669.7,0.01171296]
[1646877249826,0.05264398,2669.7,2669.5,0.0021941]
[1646877250024,0.04411315,2669.6,2669.5,0.02342592]
[1646877250272,1.58588877,2669.6,2669.0,0.014001]
[1646877250477,1.54454592,2669.3,2668.8,0.014001]
[1646877250776,0.93772,2668.7,2668.2,1.01237536]
[1646877250972,0.93772,2668.7,2668.3,0.06884919]
[1646877251172,1.87543,2668.9,2668.3,0.06884919]
[1646877251771,1.87543,2668.9,2668.2,1.38879259]
[1646877252375,3.11231,2669.7,2668.2,1.38879259]
[1646877252574,1.87463,2669.4,2668.2,3.28192944]
[1646877252771,1.87463,2669.4,2668.3,0.00731696]
[1646877252974,1.87463,2669.4,2668.4,0.3691]
[1646877253172,1.87463,2669.4,2668.6,0.3691]
[1646877253373,0.93745,2669.2,2668.3,4.32141696]
[1646877253674,0.93755,2668.9,2668.2,0.05025708]
[1646877253921,3.8,2668.4,2668.0,3.9e-06]
[1646877254122,3.8,2668.4,2667.9,5.708e-05]
[1646877254123,11.27996864,2668.0,2667.9,5.708e-05]
[1646877254322,14.76591076,2668.0,2667.9,5.708e-05]
[1646877254519,11.67155837,2667.8,2666.5,0.02507984]
[1646877254721,1.3074,2667.4,2666.5,0.02507984]
[1646877255324,0.9383,2667.4,2666.5,0.02507984]
[1646877255524,1.8766,2667.6,2667.4,1.54763693]
[1646877256424,1.54454592,2668.0,2667.4,1.54763693]
[1646877256425,0.93783,2667.7,2667.4,1.54763693]
[1646877256626,0.93783,2667.7,2667.4,0.92034204]
[1646877256627,1.54454592,2667.5,2667.4,0.92034204]
[1646877256826,1.54454592,2667.5,2667.0,0.00567669]
[1646877256827,3.35370576,2667.3,2667.0,0.00567669]
[1646877257026,1.84454592,2667.5,2665.8,0.00096]
[1646877257027,15.08,2667.0,2665.8,0.00096]
[1646877257226,3.8,2666.0,2665.1,0.03169202]
[1646877257436,1.54454592,2665.4,2665.1,0.03169202]
[1646877257683,0.9389,2665.3,2665.1,0.03169202]
[1646877258084,1.87777,2665.5,2665.1,0.03169202]
[1646877258282,1.87777,2665.5,2665.4,2.42597664]
[1646877258482,3.75471,2666.4,2665.4,2.05687664]
[1646877258483,0.9386,2665.6,2665.4,2.05687664]
[1646877258884,0.9386,2665.6,2665.4,3.14829503]
[1646877259281,0.9386,2665.6,2665.4,2.49829503]
[1646877259582,0.9386,2665.6,2665.4,1.40687664]
[1646877259784,0.9386,2665.6,2665.1,0.03169202]
[1646877259987,1.54454592,2665.2,2665.1,0.03169202]
[1646877260185,2.48371592,2665.2,2665.1,9.202e-05]
[1646877260393,2.48371592,2665.2,2663.7,2.55296887]
[1646877260588,2.48371592,2665.2,2664.4,0.9530654]
[1646877260987,0.9389466,2665.0,2664.4,0.9530654]
[1646877261186,0.9389,2664.9,2664.4,0.9530654]
[1646877261417,0.9389,2664.9,2664.4,1.04102638]
[1646877261618,0.9389,2664.9,2664.5,0.00665378]
[1646877261619,0.8889,2664.9,2664.5,0.00665378]
[1646877262019,0.8889,2664.9,2664.4,0.08796098]
[1646877262020,1.54454592,2664.6,2664.4,0.08796098]
[1646877262222,1.58832788,2664.6,2664.4,0.08796098]
[1646877262416,1.84454592,2664.6,2664.4,0.08796098]
[1646877262621,1.84454592,2664.6,2664.4,0.21960118]
[1646877262816,1.84454592,2664.6,2664.4,0.22625521]
[1646877262817,0.93913,2664.5,2664.4,0.22625521]
[1646877263220,0.93913,2664.5,2664.4,0.21086801]
[1646877263416,2.48367592,2664.5,2664.4,0.20421398]
[1646877263818,2.48367592,2664.5,2664.2,0.0291608]
[1646877263819,3.8,2664.3,2663.7,0.01212864]
[1646877264019,1.58708425,2664.2,2664.1,0.0179036]
[1646877264219,1.58708425,2664.2,2663.6,0.12625752]
[1646877264220,2.5,2664.1,2663.6,0.12625752]
[1646877264417,0.93947,2663.9,2663.6,0.12625752]
[1646877264818,2.48401592,2663.9,2663.6,0.12625752]
[1646877265021,2.48401592,2663.9,2663.6,0.18330256]
[1646877265664,0.82496139,2663.9,2663.6,0.18330256]
[1646877265863,0.9394223,2663.9,2663.6,0.18330256]
[1646877266063,1.76438369,2663.9,2663.6,0.18330256]
[1646877266465,0.93947,2664.0,2663.6,0.18330256]
[1646877266665,0.93947,2664.0,2663.7,1.55517763]
[1646877267066,0.93901,2664.3,2663.7,1.55517763]
[1646877267267,1.87796,2665.1,2663.7,1.55517763]
[1646877267467,1.87796,2665.1,2664.4,1.02920285]
[1646877267667,1.87796,2665.1,2664.5,3.5]
[1646877267872,0.014001,2665.7,2664.5,3.5]
[1646877268069,0.93886,2665.2,2664.5,3.5]
[1646877268267,0.93886,2665.2,2664.4,4.61502157]
[1646877268471,0.014001,2665.7,2664.6,2.17503861]
[1646877268669,0.014001,2665.7,2665.3,1.19271619]
[1646877268929,0.00305795,2666.8,2665.6,2.17503861]
[1646877269117,0.00305795,2666.8,2665.8,2.17503861]
[1646877269318,0.00305795,2666.8,2665.9,3.945]
[1646877269716,0.82496139,2667.0,2666.7,1.02554005]
[1646877270122,0.00305924,2666.8,2666.7,1.02554005]
[1646877270321,0.014001,2667.9,2666.8,3.8]
[1646877270526,0.306,2668.1,2667.1,2.17503861]
[1646877270730,0.306,2668.1,2667.2,3.945]
[1646877271327,0.306,2668.1,2667.1,0.01391776]
[1646877271521,0.82496139,2667.4,2667.1,0.01391776]
[1646877271720,0.82496139,2667.7,2667.1,0.01391776]
[1646877271919,0.306,2668.1,2667.1,0.01391776]
[1646877272119,0.306,2668.1,2667.2,1.09932601]
[1646877272320,1.76283139,2667.7,2667.3,0.07719502]
[1646877272769,1.76283139,2667.7,2667.3,0.01391776]
[1646877272770,0.82496139,2667.4,2667.3,0.01391776]
[1646877273870,0.82496139,2667.4,2665.9,3.50096]
[1646877273871,0.93835,2667.0,2665.9,0.00096]
[1646877274070,0.82496139,2666.0,2665.9,0.02783552]
[1646877274466,3.75489,2666.5,2665.9,0.02783552]
[1646877274467,0.82496139,2666.3,2666.0,2.25956061]
[1646877274670,0.82496139,2666.3,2665.3,0.00096]
[1646877274671,4.1691,2665.9,2665.3,0.00096]
[1646877274872,4.1691,2665.9,2665.2,2.01771236]
[1646877274873,0.82496139,2665.4,2665.2,2.01771236]
[1646877275272,0.82496139,2665.4,2664.9,0.2685]
[1646877275471,0.1691,2665.5,2665.0,1.55479234]
[1646877275671,0.82496139,2665.3,2665.0,1.55479234]
[1646877276070,3.86865716,2665.7,2665.1,0.92057794]
[1646877276273,0.82496139,2665.2,2665.1,0.92057794]
[1646877276514,3.86865716,2665.7,2665.1,2.47533752]
[1646877276515,0.93898,2665.3,2665.1,2.47533752]
[1646877276722,4.55636139,2665.2,2665.0,2.816e-05]
[1646877276921,4.55636139,2665.2,2664.9,0.2685]
[1646877276922,3.85105528,2665.1,2664.9,0.2685]
[1646877277218,3.8,2664.9,2663.9,0.04189584]
[1646877277421,0.82496139,2664.0,2663.9,0.04189584]
[1646877277620,2.86815234,2664.0,2663.9,0.04189584]
[1646877277820,0.05316784,2663.8,2663.6,0.0427128]
[1646877278018,1.9394,2664.0,2663.6,0.0427128]
[1646877278218,0.9394,2664.0,2663.6,0.0427128]
[1646877278423,5.58258659,2664.1,2663.6,0.0427128]
[1646877278424,1.93943,2664.1,2663.6,0.0427128]
[1646877278617,0.93943,2664.1,2663.6,0.0427128]
[1646877278819,5.58241139,2664.4,2664.1,1.0365342]
[1646877279020,5.58241139,2664.4,2663.6,0.0427128]
[1646877279221,0.82496139,2664.0,2663.6,0.0427128]
[1646877279418,1.76423139,2664.0,2663.6,0.0427128]
[1646877280025,3.8,2663.5,2663.4,0.0116048]
[1646877280273,0.09668815,2663.4,2663.1,0.0279588]
[1646877280472,0.82496139,2663.2,2662.5,0.00799726]
[1646877280675,1.00331115,2663.4,2662.5,0.00799726]
[1646877280873,1.00331115,2663.4,2662.6,1.1409394]
[1646877280874,0.93988,2663.4,2662.6,1.1409394]
[1646877281079,0.05165552,2663.7,2662.6,1.1409394]
[1646877281080,0.05165552,2663.7,2662.8,2.17503861]
[1646877281272,0.05023644,2664.4,2662.9,2.17503861]
[1646877281475,0.05023644,2664.4,2663.1,2.17503861]
[1646877281476,0.93921,2664.3,2663.1,2.17503861]
[1646877281670,0.93921,2664.3,2663.0,0.445]
[1646877281870,0.82496139,2663.7,2662.9,0.0850397]
[1646877282071,0.06495738,2663.7,2663.3,1.11499896]
[1646877282471,0.06495738,2663.7,2662.6,0.11373826]
[1646877282472,0.04946938,2663.7,2662.6,0.445]
[1646877282671,3.0,2663.7,2662.6,0.445]
[1646877282873,3.0,2663.3,2662.6,0.445]
[1646877283072,3.0,2663.3,2662.5,0.01407452]
[1646877283272,3.0,2663.3,2662.8,1.10287263]
[1646877283474,1.87905,2663.6,2662.8,1.10287263]
[1646877283926,1.87905,2663.6,2662.7,0.05779052]
[1646877283927,3.05651453,2663.5,2662.7,0.05779052]
[1646877284113,1.87905,2663.6,2662.7,0.05779052]
[1646877284114,0.06119409,2662.8,2662.7,0.05779052]
[1646877284315,0.07530409,2662.8,2662.7,0.05779052]
[1646877284714,4.9397831,2662.9,2662.8,0.00440528]
[1646877284918,4.9397831,2662.9,2662.8,0.06176912]
[1646877285321,3.50255978,2662.9,2662.8,0.06176912]
[1646877285528,3.50255978,2662.9,2662.4,0.02448948]
[1646877285529,3.7,2662.6,2662.2,0.06801814]
[1646877285726,3.7,2662.6,2662.0,12.54957533]
[1646877285727,0.84224253,2662.3,2662.0,12.54957533]
[1646877285923,0.84224253,2662.3,2662.0,6.40712783]
[1646877285924,0.86146953,2662.1,2662.0,6.40712783]
[1646877286123,0.86146953,2662.1,2661.0,0.04080648]
[1646877286124,3.8,2661.8,2661.0,0.00918932]
[1646877286331,3.8,2661.8,2659.4,0.0209954]
[1646877286332,0.87445328,2660.3,2659.4,0.0209954]
[1646877286523,0.87445328,2660.3,2658.5,1.03305276]
[1646877286524,0.84224253,2659.5,2658.5,1.03305276]
[1646877286724,0.79224253,2658.6,2658.5,0.00916116]
[1646877286923,0.79224253,2658.6,2656.3,0.0301727]
[1646877286924,4.29224253,2658.6,2656.3,0.0301727]
[1646877287127,0.82141053,2657.7,2657.1,0.00732898]
[1646877287323,5.563,2658.4,2657.1,0.00732898]
[1646877287324,0.018339,2657.5,2657.1,0.00732898]
[1646877287523,0.021889,2658.2,2657.1,0.00732898]
[1646877287524,8.37190891,2658.6,2657.1,0.13745728]
[1646877287767,9.23874188,2659.4,2657.1,3.58745728]
[1646877287768,0.445,2658.7,2657.1,3.58745728]
[1646877287967,6.74587166,2659.4,2657.1,6.95239082]
[1646877287968,0.445,2658.6,2657.1,6.95239082]
[1646877288169,0.012423,2658.9,2657.1,7.06532591]
[1646877288368,0.012423,2658.9,2658.5,1.18154053]
[1646877288569,1.88221,2659.3,2658.5,1.18154053]
[1646877288768,2.0,2658.2,2657.8,0.01242127]
[1646877288974,3.5,2659.3,2658.2,3.3246021]
[1646877289267,0.94095,2659.4,2658.2,3.3246021]
[1646877289467,4.011667,2659.5,2658.2,3.3246021]
[1646877289668,3.5,2659.4,2658.9,1.15264107]
[1646877289872,4.011667,2659.5,2658.9,1.15264107]
[1646877289873,4.011667,2659.5,2658.9,0.3730147]
[1646877290069,4.011667,2659.5,2658.9,0.5005593]
[1646877290070,3.5,2659.4,2658.9,0.5005593]
[1646877290276,3.8,2659.2,2658.5,0.0402429]
[1646877290473,1.895749,2658.9,2658.5,0.0402429]
[1646877290774,1.0,2658.6,2658.5,0.0402429]
[1646877290973,1.0,2658.6,2657.8,0.0407268]
[1646877290974,3.7402,2658.5,2657.8,0.0407268]
[1646877291177,7.3,2658.4,2658.2,0.0958542]
[1646877291422,3.7,2658.1,2657.3,0.06425998]
[1646877291629,1.8,2658.2,2657.3,0.06425998]
[1646877291630,0.94161,2658.2,2657.3,0.06425998]
[1646877291826,0.013039,2658.9,2657.3,0.06425998]
[1646877292026,0.013039,2658.9,2657.4,3.445]
[1646877292027,1.0,2658.6,2657.4,3.445]
[1646877292225,1.0,2658.6,2657.6,3.0]
[1646877292424,0.013039,2658.9,2658.6,2.49361181]
[1646877292623,4.011667,2659.5,2658.6,2.49361181]
[1646877292824,4.011667,2659.5,2658.9,0.89360033]
[1646877293022,4.011667,2659.5,2658.6,2.49361181]
[1646877293226,1.896047,2659.1,2658.6,2.49361181]
[1646877293623,3.3,2659.0,2658.5,0.034191]
[1646877293824,2.0,2659.0,2658.5,0.034191]
[1646877294023,1.94108,2659.0,2658.6,1.15618882]
[1646877294228,1.0,2659.0,2658.6,1.15618882]
[1646877294937,1.0,2658.7,2658.6,0.02217512]
[1646877295161,1.0,2658.7,2658.5,0.0189716]
[1646877295162,3.86054291,2658.6,2658.5,0.0379432]
[1646877295366,1.00206291,2658.6,2658.5,0.0379432]
[1646877295569,0.06054291,2658.6,2658.5,0.0379432]
[1646877295765,0.06054291,2658.6,2658.5,0.98823251]
[1646877295967,4.011667,2659.3,2658.5,1.00563795]
[1646877296165,4.0,2659.5,2658.5,1.00563795]
[1646877296772,0.13819997,2660.1,2658.5,1.00563795]
[1646877296965,0.05031398,2660.5,2658.6,3.945]
[1646877297165,0.01292887,2660.6,2658.6,3.94596]
[1646877297366,0.01292887,2660.6,2658.7,0.00096]
[1646877297567,0.01292887,2660.6,2658.9,3.3691]
[1646877297568,0.0490241,2660.6,2658.9,3.3691]
[1646877297768,1.0,2660.7,2659.2,3.3691]
[1646877297975,1.0,2660.7,2659.5,3.0]
[1646877298167,1.0,2660.7,2659.6,1.62135235]
[1646877298371,4.5,2661.9,2659.6,1.62135235]
[1646877298372,0.01258307,2662.3,2660.4,3.0]
[1646877298566,0.01258307,2662.3,2660.2,0.3691]
[1646877298567,3.5,2661.9,2660.5,0.445]
[1646877298767,3.5,2661.9,2660.6,0.445]
[1646877298768,0.0437899,2661.9,2660.6,0.445]
[1646877299019,3.51258307,2662.3,2659.9,0.00096]
[1646877299020,0.94012,2661.8,2659.9,0.00096]
[1646877299220,1.20319419,2661.4,2660.6,0.91404278]
[1646877299420,0.04279792,2661.6,2660.9,0.00316505]
[1646877299618,0.05508933,2661.6,2660.9,0.00316505]
[1646877300217,0.05508933,2661.6,2660.7,0.00189922]
[1646877300218,0.94016,2661.8,2660.5,0.445]
[1646877300425,1.23333479,2662.6,2661.7,0.88043838]
[1646877300622,0.00306546,2662.1,2661.7,0.88043838]
[1646877300822,0.00306546,2662.1,2661.0,0.00316499]
[1646877301425,0.00306546,2662.1,2660.1,0.44596]
[1646877301426,0.04368325,2662.3,2660.2,0.00096]
[1646877301628,0.05040666,2662.0,2661.3,0.00316463]
[1646877301826,0.0030658,2662.1,2661.5,1.14401459]
[1646877302427,0.0030658,2662.1,2661.6,3.8691]
[1646877302675,2.94487407,2662.7,2661.5,1.58901459]
[1646877303072,0.00306609,2662.1,2661.5,0.00316433]
[1646877303771,0.04608821,2662.6,2660.8,0.00096]
[1646877303969,3.54662788,2662.6,2660.6,0.44596]
[1646877304168,3.54662788,2662.6,2661.5,0.00316433]
[1646877304169,0.00306609,2662.1,2661.5,0.00316433]
[1646877304369,0.00306609,2662.1,2661.8,1.20923122]
[1646877304872,3.55098641,2662.5,2661.5,0.00316433]
[1646877305072,0.05042381,2662.1,2660.8,0.00096]
[1646877305272,0.05042381,2662.1,2659.8,1.1727]
[1646877305273,0.05349007,2662.1,2661.7,0.00316416]
[1646877305473,0.01236599,2661.8,2659.9,0.00096]
[1646877305674,2.82102,2661.4,2659.9,0.00096]
[1646877305873,0.04802361,2661.3,2660.9,1.22424527]
[1646877306076,0.94033,2661.2,2660.9,1.22424527]
[1646877306274,0.94033,2661.2,2659.9,0.00096]
[1646877306716,0.89033,2661.2,2659.9,0.00096]
[1646877306917,0.05405495,2661.6,2659.9,11.28096]
[1646877307121,0.05405495,2661.6,2660.0,3.5]
[1646877307322,4.7611,2661.8,2660.0,3.5]
[1646877307323,1.0,2661.9,2660.9,3.0]
[1646877307520,1.0,2661.9,2661.0,0.01169]
[1646877307719,5.42670925,2663.0,2661.3,3.0]
[1646877307918,0.14403397,2663.1,2661.4,0.00096]
[1646877308122,2.99464121,2663.9,2662.2,3.0]
[1646877308321,2.99464121,2663.9,2663.5,1.17264891]
[1646877308322,2.94436705,2663.9,2663.5,1.17264891]
[1646877308518,1.0,2664.1,2663.5,1.25695947]
[1646877308717,1.0,2664.1,2663.5,1.17264891]
[1646877309019,1.0,2664.1,2662.5,0.011732]
[1646877309020,0.04918044,2664.0,2662.5,0.011732]
[1646877309219,0.04918044,2664.0,2661.4,3.5]
[1646877309220,7.7399243,2663.2,2661.4,0.00096]
[1646877309417,0.06636073,2663.0,2661.4,0.00096]
[1646877309628,0.06636073,2663.0,2661.1,0.00096]
[1646877309824,0.06636073,2663.0,2659.4,1.1496]
[1646877309825,0.04884849,2661.3,2660.7,1.04818403]
[1646877310028,0.01229828,2661.8,2660.3,0.00096]
[1646877310029,0.94057,2661.0,2660.3,0.00096]
[1646877310274,0.01204103,2661.2,2659.5,0.09049021]
[1646877310275,0.9406394,2660.6,2659.5,0.09049021]
[1646877310474,0.05107717,2661.1,2659.5,0.00096]
[1646877310673,2.82155,2661.4,2659.6,0.08120971]
[1646877310674,1.05319342,2661.4,2659.6,0.08120971]
[1646877310870,3.8214656,2661.8,2659.7,3.0]
[1646877310871,0.04907526,2661.6,2659.7,3.0]
[1646877311078,1.0,2661.8,2661.6,1.21103549]
[1646877311271,3.82154,2661.9,2660.7,0.011667]
[1646877312077,2.01791997,2662.4,2661.0,3.0]
[1646877312278,0.93975,2662.7,2662.2,1.08667784]
[1646877312279,0.93975,2662.6,2662.2,1.08667784]
[1646877312473,0.93975,2662.6,2660.9,0.01233346]
[1646877312474,0.93975,2662.6,2661.5,0.011667]
[1646877312675,0.052175,2662.4,2660.8,0.00096]
[1646877312874,0.052175,2662.4,2661.4,0.00080099]
[1646877312875,0.421275,2662.4,2661.4,0.00080099]
[1646877313078,3.5,2662.8,2661.4,0.00080099]
[1646877313079,3.0,2661.9,2661.4,0.00080099]
[1646877313275,3.0,2661.9,2660.2,0.00096]
[1646877313276,0.42272361,2661.7,2660.2,0.00096]
[1646877313476,0.04783295,2661.4,2660.8,1.09216084]
[1646877313675,0.98818655,2661.4,2660.8,1.09216084]
[1646877313910,2.82098,2661.6,2660.8,1.09216084]
[1646877313911,0.04175837,2661.3,2660.8,1.09216084]
[1646877314113,2.82098,2661.6,2660.2,0.012627]
[1646877314114,1.88066,2661.5,2660.2,0.012627]
[1646877314313,1.88066,2661.5,2659.2,1.6094]
[1646877314314,0.04555966,2661.2,2660.0,0.00096]
[1646877314514,0.04555966,2661.2,2659.2,1.1644]
[1646877314515,3.8,2661.0,2659.2,1.1644]
[1646877314714,0.9408797,2660.5,2659.2,1.1644]
[1646877314916,0.0497942,2660.3,2659.2,0.007]
[1646877315114,1.88166,2660.2,2659.2,0.007]
[1646877315320,0.94085,2660.2,2659.5,0.90889724]
[1646877315719,2.0,2660.6,2659.8,0.3691]
[1646877315720,1.0,2660.6,2659.8,0.3691]
[1646877315919,0.04268226,2661.7,2660.0,0.3691]
[1646877316119,0.04481876,2662.2,2660.2,0.011713]
[1646877316323,0.94013,2661.4,2660.4,0.3691]
[1646877316518,0.94013,2661.4,2660.2,0.011713]
[1646877316519,0.94013,2661.4,2660.5,1.39918429]
[1646877316919,0.94013,2661.4,2660.2,0.011713]
[1646877317763,0.94013,2661.4,2660.5,0.0025637]
[1646877318066,0.94013,2661.4,2660.3,0.00153838]
[1646877318067,3.01236199,2660.9,2660.3,0.00153838]
[1646877318265,14.29290372,2660.4,2660.3,3.838e-05]
[1646877318464,14.29290372,2660.4,2658.6,0.00096]
[1646877318465,11.6491,2659.9,2658.6,0.00096]
[1646877318666,11.6491,2659.9,2658.8,0.03481088]
[1646877318667,11.6491,2659.7,2658.8,0.03481088]
[1646877318862,11.6491,2659.7,2659.1,1.1562598]
[1646877318863,0.3691,2659.5,2659.1,1.1562598]
[1646877319064,0.05118484,2659.6,2659.1,1.1562598]
[1646877319065,0.94122,2659.6,2659.1,1.1562598]
[1646877319265,1.88254,2659.4,2659.1,1.1562598]
[1646877319461,1.88254,2659.4,2658.5,0.0379432]
[1646877319869,2.18254,2659.4,2658.5,0.0379432]
[1646877320066,0.3691,2659.2,2658.5,0.0379432]
[1646877320278,0.94113,2659.1,2658.5,0.0379432]
[1646877320471,2.96800048,2658.8,2658.5,0.0379432]
[1646877320669,3.8,2658.7,2658.0,0.01975456]
[1646877320971,0.04414317,2658.4,2658.0,0.06100928]
[1646877321430,2.29607637,2658.4,2658.0,0.06100928]
[1646877321716,0.05307485,2658.3,2658.2,1.00153328]
[1646877321919,0.94143,2658.4,2658.2,1.00153328]
[1646877322121,1.04305351,2658.9,2658.2,1.00153328]
[1646877322318,0.0450565,2659.4,2658.2,1.00153328]
[1646877322517,0.94098,2659.1,2658.2,1.00153328]
[1646877322724,0.13819997,2659.8,2658.2,1.00153328]
[1646877322725,1.0,2659.9,2658.2,1.37063328]
[1646877322923,1.0,2659.9,2658.6,0.3691]
[1646877323120,1.0,2659.9,2658.6,11.65006]
[1646877323320,1.0,2659.9,2658.8,0.3691]
[1646877323518,1.88115,2660.5,2659.2,11.6491]
[1646877323719,0.94039,2660.6,2659.2,0.3691]
[1646877323919,0.94039,2660.6,2659.0,0.00096]
[1646877323920,0.3691,2660.5,2659.0,0.00096]
[1646877324122,1.88111,2660.3,2659.9,0.90826496]
[1646877324320,2.82183,2660.7,2659.9,0.90826496]
[1646877324321,2.87052442,2660.7,2659.9,0.90826496]
[1646877324520,0.94011,2661.6,2660.3,0.011761]
[1646877324724,1.88022,2661.8,2660.8,0.011792]
[1646877324725,0.94002,2661.8,2660.8,0.011792]
[1646877324922,2.9457345,2662.2,2660.8,0.011792]
[1646877325176,1.87954,2662.6,2661.8,0.9063238]
[1646877325387,1.87954,2662.6,2661.9,0.011696]
[1646877325681,0.05378013,2663.0,2661.9,0.011696]
[1646877325682,1.93318013,2663.0,2662.0,0.07760979]
[1646877325883,1.30876,2662.7,2662.0,0.07760979]
[1646877326084,1.30876,2662.7,2661.1,3.3815656]
[1646877326085,0.3691,2662.5,2661.2,3.50096]
[1646877326284,0.3691,2662.0,2660.6,0.00096]
[1646877326483,0.3691,2662.0,2660.2,0.07328586]
[1646877326484,0.3691,2661.8,2660.0,6.3568]
[1646877326687,0.05420804,2661.7,2660.1,0.07420806]
[1646877326883,0.3691,2661.6,2660.1,3.07516806]
[1646877327082,0.0512172,2662.2,2661.6,0.16725999]
[1646877327481,1.0,2662.3,2661.6,0.16725999]
[1646877327880,2.82022,2662.4,2661.6,0.16725999]
[1646877328284,1.36480633,2662.3,2661.6,0.16725999]
[1646877328483,1.87992,2662.0,2661.6,0.16725999]
[1646877328928,0.99418152,2661.9,2661.6,0.16725999]
[1646877329115,0.05882796,2661.8,2661.6,0.16725999]
[1646877329318,0.05882796,2661.8,2661.7,0.0023063]
[1646877329716,0.00306184,2662.1,2661.7,0.0023063]
[1646877329717,0.06134336,2662.1,2661.7,0.0023063]
[1646877329918,0.00306184,2662.1,2661.7,0.0023063]
[1646877330325,2.01742997,2663.1,2661.6,0.16725999]
[1646877330326,0.42674302,2663.0,2661.6,0.16725999]
[1646877330523,0.00306184,2661.9,2661.6,0.16725999]
[1646877330727,0.00306184,2661.9,2661.7,0.98910145]
[1646877331124,6.184e-05,2661.9,2661.8,3.5]
[1646877331324,2.01742997,2663.1,2661.8,1.92609993]
[1646877331325,0.19668449,2663.1,2661.8,1.92609993]
[1646877331526,0.19668449,2663.1,2661.7,0.06765969]
[1646877331527,0.19668449,2663.1,2662.0,0.0617667]
[1646877331825,0.05848452,2663.1,2661.9,0.00096]
[1646877332026,0.05674156,2663.4,2661.8,12.89929872]
[1646877332228,0.05945396,2663.3,2662.8,0.94505991]
[1646877332426,2.81845,2663.2,2662.8,0.94505991]
[1646877332664,0.0029313,2662.6,2662.1,0.06181507]
[1646877333063,0.0029313,2662.6,2661.7,9.5697]
[1646877333064,0.0029313,2662.6,2661.8,11.34300137]
[1646877333266,0.0029313,2662.6,2661.9,0.07487577]
[1646877333464,1.87912,2663.2,2661.9,0.44397577]
[1646877333664,1.87912,2663.2,2662.6,1.03735902]
[1646877333863,1.87915,2662.8,2662.6,1.03735902]
[1646877334065,1.77915,2662.8,2662.6,1.03735902]
[1646877334664,0.93952,2663.1,2662.6,1.03735902]
[1646877334866,0.06317358,2663.7,2662.7,0.07291113]
[1646877335068,0.93922,2663.6,2662.7,0.07291113]
[1646877335275,5.896e-05,2662.8,2662.7,0.07291113]
[1646877335473,5.896e-05,2662.8,2662.7,0.07387113]
[1646877336171,5.896e-05,2662.8,2662.7,3.57387113]
[1646877336432,5.896e-05,2662.8,2662.7,3.57291113]
[1646877336617,0.06530569,2664.9,2662.8,0.07536957]
[1646877337418,0.06530569,2664.9,2664.2,1.06318809]
[1646877337621,0.9388,2665.1,2664.4,0.011775]
[1646877337922,0.06378258,2665.2,2664.2,1.06318809]
[1646877337923,0.05143392,2665.2,2664.3,3.49704939]
[1646877338125,0.01234788,2666.4,2664.4,0.05447291]
[1646877338329,0.25894243,2666.5,2664.6,3.7]
[1646877338330,0.12405685,2666.5,2664.6,3.7]
[1646877338530,1.0,2667.0,2665.0,0.90819736]
[1646877338531,0.04035806,2666.1,2665.0,0.90819736]
[1646877338725,0.04035806,2666.1,2665.2,0.05101898]
[1646877339127,0.0640857,2666.2,2664.8,0.05235552]
[1646877339327,0.0640857,2666.2,2664.8,0.05139552]
[1646877339525,0.0640857,2666.2,2664.8,0.05235552]
[1646877339724,1.0023757,2666.2,2664.8,0.05235552]
[1646877339928,0.06402366,2666.1,2664.8,0.00096]
[1646877340174,0.93829,2666.2,2664.7,0.98428854]
[1646877340175,0.07334627,2665.3,2664.7,0.98428854]
[1646877340382,0.00305952,2665.6,2664.8,0.05498765]
[1646877340582,0.00305952,2665.6,2664.7,4.48428854]
[1646877340781,0.00305952,2665.6,2664.8,0.05527028]
[1646877340981,0.070219,2666.8,2665.1,3.7]
[1646877341195,0.04490545,2666.9,2665.7,3.0]
[1646877341382,0.93795,2667.5,2665.9,0.05525614]
[1646877341383,6.333e-05,2666.4,2665.9,0.05525614]
[1646877341582,2.93882496,2667.3,2665.8,3.5]
[1646877341583,2.93882496,2667.3,2666.1,0.05656394]
[1646877341585,0.04433703,2666.8,2666.1,0.05656394]
[1646877341783,0.04433703,2666.8,2665.9,0.00096]
[1646877341979,0.04433703,2666.8,2665.6,3.50096]
[1646877342180,0.04433703,2666.8,2666.7,1.2144158]
[1646877343383,1.10465957,2667.7,2666.7,1.2144158]
[1646877343384,0.06252194,2667.6,2666.8,3.4]
[1646877343584,0.01821177,2667.4,2666.8,3.4]
[1646877343786,0.93786,2667.6,2666.8,3.46114768]
[1646877344018,0.93786,2667.6,2666.9,0.05879009]
[1646877344419,0.0661597,2667.7,2667.2,1.18082415]
[1646877344620,0.93776,2667.8,2667.2,1.18082415]
[1646877344820,0.93776,2667.8,2667.2,1.24161481]
[1646877345018,0.93776,2667.8,2667.0,0.04086316]
[1646877345319,0.06507693,2667.4,2667.0,0.04086316]
[1646877345518,0.951192,2667.4,2667.0,0.04086316]
[1646877345721,0.05603177,2667.1,2666.4,0.0442737]
[1646877346118,0.05603177,2667.1,2665.9,0.00096]
[1646877346119,0.88887152,2666.8,2666.2,0.04541054]
[1646877346428,0.05511718,2666.7,2666.5,0.04370527]
[1646877346618,0.05511718,2666.7,2666.2,0.04541054]
[1646877346920,0.93824,2666.6,2666.2,0.04541054]
[1646877347318,0.06417009,2666.5,2666.2,0.04541054]
[1646877347766,0.93824,2666.6,2666.2,0.04541054]
[1646877347966,0.00305843,2666.5,2665.7,0.04825266]
[1646877348165,0.93812,2666.4,2665.7,0.04825266]